Cogmind - Beta 14 --- EXPLORER MODE // 2024.11.29 @ 10:44:42 Player: AikonCWD Result: Destroyed by Y-45 Defender with Heavy Assault Rifle Performance ------------- Evolutions (2) 1000 Regions Visited (5) 1000 Robots Destroyed (34) 170 Value Destroyed (913) 913 Prototype IDs (3) 60 Alien Tech Used (0) 0 Bonus (31) 31 TOTAL SCORE: 3174 Bonus ------- High Alert Combat Kills 11 Follower Combat Kills 69 Aligned with FarCom 300 Friendly Fire -349 Cogmind --------- Core Integrity 0/550 Matter 300/300 Energy 100/100 System Corruption 1% Temperature Cool (0) Movement Core (50) Location -8/Materials Parts ------- > --- POWER (1) -------- (None) > --- PROPULSION (4) --- (None) > --- UTILITY (5) ------ (None) > --- WEAPON (2) ------- (None) > --- INVENTORY (5) ---- Light Armor Plating Datajack Peak State ------------ > --- POWER ------------ Light Nuclear Core > --- PROPULSION ------- Aluminum Leg Aluminum Leg Aluminum Leg Improved Aluminum Leg > --- UTILITY ---------- Improved Heat Sink Improved Heat Sink High-capacity Storage Unit Seismic Detector Targeting Computer > --- WEAPON ----------- Light Assault Rifle Datajack > --- INVENTORY -------- Light Ion Engine Light Ion Engine Light Fission Core Aluminum Leg Aluminum Leg Aluminum Leg Force Booster Light Armor Plating Medium Laser Light Assault Rifle Light Assault Rifle Light Assault Rifle Mining Laser Mining Claw [Rating: 21] Favorites ----------- Power Light Ion Engine Engine Light Ion Engine Power Core Light Nuclear Core Propulsion Aluminum Leg Leg Aluminum Leg Utility Experimental Sensor Array Device Experimental Sensor Array Storage High-capacity Storage Unit Processor Targeting Computer Weapon Light Assault Rifle Ballistic Gun Light Assault Rifle Launcher Shock Bomb Launcher Special Weapon Mining Laser Special Melee Weapon Datajack Build | -11 -10 -10 -10 -9 -8 ------- Run | Yrd Mat Min Exi Min Mat Slots Evolved 5 | . 1 . . . 4 Power . | . . . . . . Propulsion 2 | . 1 . . . 1 Utility 3 | . . . . . 3 Weapon . | . . . . . . Parts Attached 38 | 7 3 7 4 5 12 Power 5 | 1 . 1 1 1 1 Engine 4 | 1 . 1 1 . 1 Core 1 | . . . . 1 . Reactor . | . . . . . . Propulsion 8 | 2 1 1 1 1 2 Treads . | . . . . . . Leg 8 | 2 1 1 1 1 2 Wheel . | . . . . . . Hover . | . . . . . . Flight . | . . . . . . Utility 11 | 2 . 2 2 2 3 Device 7 | 2 . 1 . 2 2 Storage 3 | . . 1 2 . . Processor 1 | . . . . . 1 Hackware . | . . . . . . Protection . | . . . . . . Artifact . | . . . . . . Weapon 14 | 2 2 3 . 1 6 Energy Gun . | . . . . . . Energy Cannon . | . . . . . . Ballistic Gun 8 | 2 1 2 . . 3 Ballistic Cannon . | . . . . . . Launcher 1 | . . . . . 1 Special Weapon 2 | . . 1 . . 1 Impact Weapon . | . . . . . . Slashing Weapon . | . . . . . . Piercing Weapon . | . . . . . . Special Melee Weapon 3 | . 1 . . 1 1 Unidentified Prototypes 1 | . . 1 . . . Parts Lost 21 | . . 4 . 2 15 Power 4 | . . 1 . 1 2 Propulsion 6 | . . 2 . . 4 Utility 6 | . . 1 . 1 4 Weapon 5 | . . . . . 5 Highest Loss Streak 5 | . . 3 . 1 5 To Critical Strikes . | . . . . . . Average Slot Usage (%) 90 | . 95 91 97 94 63 Engine 7 | . 12 8 11 5 . Core 1 | . . . . 4 3 Leg 33 | . 33 33 35 37 18 Device 12 | . 25 12 12 9 15 Storage 10 | . . 10 12 12 6 Ballistic Gun 21 | . 14 24 25 21 10 Special Melee Weapon 1 | . 8 . . 3 . Peak Build Rating 21 | 9 10 16 17 17 21 Average Rating 13 | 5 9 12 16 14 13 On Entrance 11 | . 9 10 15 17 15 Naked Turns 93 | . . . . . 93 Heaviest Build 50 | 7 7 16 46 48 50 Greatest Support 43 | 20 30 30 30 33 43 Greatest Overweight (x) 13 | . . . 1 1 13 Average Overweight (x) . | . . . . 1 . Largest Inventory Capacity 20 | 5 5 10 20 20 20 Average Capacity 14 | 5 5 9 16 20 16 Most Carried 18 | 4 5 9 10 18 16 Average Carried 10 | 1 4 7 9 14 11 Final Capacity 20 | 5 5 10 20 20 5 Final Carried 17 | 4 5 9 9 17 2 Class Distribution -------------------- 81% | Hacker-Mutant 12% | Hacker-Skirmisher 5% | Scavenger-Mutant Dominant Class ---------------- Hacker-Mutant | -10/Materials Hacker-Mutant | -10/Mines Hacker-Mutant | -10/Exiles Hacker-Mutant | -9/Mines Hacker-Mutant | -8/Materials Resources | -11 -10 -10 -10 -9 -8 ----------- Run | Yrd Mat Min Exi Min Mat Matter Collected 820 | 296 16 135 . 198 175 Remotely . | . . . . . . Salvage Created 1315 | 141 16 229 . 203 726 Parts 92 | 15 1 17 . 15 44 Haulers Intercepted . | . . . . . . Recyclers Shooed 1 | . . . . . 1 Parts Field Recycled . | . . . . . . Retrieved Matter . | . . . . . . Parts Self-Destructed . | . . . . . . Prevented . | . . . . . . Kills | -11 -10 -10 -10 -9 -8 ------- Run | Yrd Mat Min Exi Min Mat Combat Hostiles Destroyed 19 | 1 1 4 . 3 10 Guns 14 | 1 1 4 . 3 5 AOE 5 | . . . . . 5 Classes Destroyed 8 | 3 1 . . . 4 Worker 4 | 1 . 1 . . 2 Builder 3 | . . . . . 3 Tunneler 5 | 4 . 1 . . . Recycler 1 | . . . . . 1 Swarmer 2 | . 1 . . 1 . Grunt 16 | 1 . 4 . 4 7 Duelist 1 | . . . . . 1 Sentry 2 | . . . . . 2 Best Kill Streak 11 | 5 1 3 . 1 11 Combat Bots Only 5 | 1 1 2 . 1 5 Max Kills in Single Turn 3 | 1 1 1 . 1 3 Gunslinging . | . . . . . . Exploded 2 | . . . . . 2 Melee . | . . . . . . Uniques/NPCs Destroyed . | . . . . . . Combat | -11 -10 -10 -10 -9 -8 -------- Run | Yrd Mat Min Exi Min Mat Hostile Shots Fired 206 | 2 5 20 . 17 162 Missed 55 | 1 3 2 . 3 46 Damage Taken 2134 | 7 7 609 . 112 1399 Core 704 | 7 . 129 . 9 559 Absorbed by Shields . | . . . . . . Ignored by Resistances 1024 | 4 6 135 . 72 807 Core Remaining (%) 69 | 97 . . . 42 . Volleys Fired 92 | 13 2 17 . 20 40 Largest 2 | 2 1 2 . 2 2 Hottest 100 | 40 20 100 . 40 40 Shots Fired 172 | 26 2 34 . 41 69 Gun 165 | 26 2 32 . 41 64 Cannon . | . . . . . . Launcher 5 | . . . . . 5 Special 2 | . . 2 . . . Kinetic 165 | 26 2 32 . 41 64 Thermal 2 | . . 2 . . . Explosive . | . . . . . . Electromagnetic 5 | . . . . . 5 Robot Hit Streak 40 | 20 7 22 . 20 40 Robot Miss Streak 2 | 1 . 1 . 2 1 Penetration Max . | . . . . . . Secondary Targets 1 | . . . . . 1 Max Gunslinging Chain 1 | . . . . . 1 Shots Hit Robots 162 | 25 6 27 . 37 67 Core Hits 90 | 11 2 13 . 18 46 Critical Kills . | . . . . . . Critical Parts Destroyed 1 | . . . . 1 . Critical Strikes 1 | . . . . 1 . Destroy 1 | . . . . 1 . Melee Attacks 9 | . 4 . . 4 1 Impact . | . . . . . . Slashing . | . . . . . . Piercing . | . . . . . . Sneak Attacks 7 | . 3 . . 4 . Combat Hostiles . | . . . . . . Follow-up Attacks . | . . . . . . Damage Inflicted 1732 | 201 13 243 . 317 958 Guns 1237 | 201 13 232 . 280 511 Cannons . | . . . . . . Explosions 366 | . . . . . 366 Melee . | . . . . . . Ramming 129 | . . 11 . 37 81 Kinetic 1237 | 201 13 232 . 280 511 Thermal 43 | . . . . . 43 Explosive . | . . . . . . Electromagnetic 323 | . . . . . 323 Impact . | . . . . . . Slashing . | . . . . . . Piercing . | . . . . . . Highest Corruption 6 | . . 3 3 6 1 Average Corruption 3 | . . 3 3 4 1 Corruption Purged . | . . . . . . Corruption Blocked . | . . . . . . Effects 69 | . . 16 12 40 1 Message Errors 18 | . . 2 6 10 . Matter Fused 17 | . . 5 2 10 . Heat Flow Errors 7 | . . 3 2 2 . Energy Discharges 9 | . . 2 1 6 . Parts Fused 2 | . . . . 2 . Data Loss (minor) 6 | . . 1 . 4 1 Data Loss (major) 2 | . . 1 . 1 . Misfires 4 | . . 2 . 2 . Alerts 3 | . . . 1 2 . Weapon Failures 1 | . . . . 1 . Overload Shots . | . . . . . . Overflow Damage 13 | . . . . . 13 Projectiles . | . . . . . . Explosions 13 | . . . . . 13 Melee . | . . . . . . Knockbacks . | . . . . . . Impact . | . . . . . . Kinetic . | . . . . . . Secondary . | . . . . . . Self-Inflicted Damage 99 | . . . . . 99 Shots 6 | . . . . . 6 Rammed 12 | . . . . . 12 Targets Rammed 23 | . . 2 . 8 13 Kicked 11 | . . 2 . 8 1 Crushed . | . . . . . . Highest Temperature 273 | . . 273 101 248 5 Average Temperature 71 | . . 85 53 66 2 Received Heat Transfer 1158 | 6 . 111 . 78 963 Effects 3 | . . 3 . . . Interference 3 | . . 3 . . . Siege Activations . | . . . . . . Robots Corrupted . | . . . . . . Combat Hostiles . | . . . . . . Parts Fried . | . . . . . . Impact Corruptions . | . . . . . . Robots Melted . | . . . . . . Combat Hostiles . | . . . . . . Parts Melted . | . . . . . . Heat Transferred 100 | . . . . . 100 Parts Sabotaged . | . . . . . . Parts Stolen . | . . . . . . Parts Stripped . | . . . . . . Power Chain Reactions 2 | . . . . . 2 Alert | -11 -10 -10 -10 -9 -8 ------- Run | Yrd Mat Min Exi Min Mat Peak Influence 423 | 45 57 56 . 92 423 Initial 22 | . 22 15 . . . Average 19 | 21 32 9 . 15 47 Maximum Alert Level 2 | . . . . . 2 Low Security (%) 99 | 100 100 100 . 100 94 Level 1 . | . . . . . 1 Level 2 . | . . . . . 3 Level 3 . | . . . . . . Level 4 . | . . . . . . Level 5 . | . . . . . . High Security . | . . . . . . Max Security . | . . . . . . Squads Dispatched 3 | . . . . . 3 Investigation 1 | . . . . . 1 Extermination . | . . . . . . Reinforcement . | . . . . . . Assault 1 | . . . . . 1 Garrison 1 | . . . . . 1 Intercept . | . . . . . . Searches Triggered . | . . . . . . Construction Impeded . | . . . . . . Haulers Reinforced . | . . . . . . Active Scanning Responses . | . . . . . . Cargo Convoy Interrupts . | . . . . . . Stealth | -11 -10 -10 -10 -9 -8 --------- Run | Yrd Mat Min Exi Min Mat Distress Signals 3 | . . . . . 3 Communications Jammed . | . . . . . . Distress Signals . | . . . . . . Times Spotted 37 | 1 2 5 . 6 23 Peak Tracking Total 8 | 1 2 2 . 2 8 Tactical Retreats 4 | . 1 . . . 3 Traps | -11 -10 -10 -10 -9 -8 ------- Run | Yrd Mat Min Exi Min Mat Traps Triggered . | . . . . . . Indirectly . | . . . . . . Trap Hack Attempts . | . . . . . . Triggered . | . . . . . . Disarmed . | . . . . . . Reprogrammed . | . . . . . . Reused . | . . . . . . Traps Extracted . | . . . . . . Installed . | . . . . . . Triggered . | . . . . . . Machines | -11 -10 -10 -10 -9 -8 ---------- Run | Yrd Mat Min Exi Min Mat Machines Disabled 1 | . . . . . 1 Max in Single Turn 1 | . . . . . 1 Garrison Access 1 | . . . . . 1 Machines Repaired . | . . . . . . Machines Dismantled . | . . . . . . Machines Sabotaged . | . . . . . . Overloaded Fab Kills . | . . . . . . Hacking | -11 -10 -10 -10 -9 -8 --------- Run | Yrd Mat Min Exi Min Mat Machines Accessed 8 | . 2 . 4 . 2 Terminals 3 | . 2 . . . 1 Fabricators . | . . . . . . Repair Stations . | . . . . . . Recycling Units 1 | . . . . . 1 Scanalyzers . | . . . . . . Garrison Access . | . . . . . . Total Hacks 65 | . 11 . 49 . 5 Successful 62 | . 10 . 49 . 3 Failed 3 | . 1 . . . 2 Catastrophic . | . . . . . . Database Lockouts . | . . . . . . Manual . | . . . . . . Terminals 15 | . 11 . . . 4 Fabricators . | . . . . . . Repair Stations . | . . . . . . Recycling Units 1 | . . . . . 1 Scanalyzers . | . . . . . . Garrison Access . | . . . . . . Terminal Hacks 61 | . 10 . 49 . 2 Record 56 | . 6 . 49 . 1 Prototype ID Bank 1 | . 1 . . . . Branch Access Points 1 | . . . . . 1 Dispatch Records 1 | . 1 . . . . Hauler Manifests 1 | . 1 . . . . Zone Layout 1 | . 1 . . . . Fabricator Hacks . | . . . . . . Repair Station Hacks . | . . . . . . Recycling Unit Hacks 1 | . . . . . 1 Retrieve Components 1 | . . . . . 1 Scanalyzer . | . . . . . . Garrison Access Hacks . | . . . . . . Unauthorized Hacks . | . . . . . . Terminals . | . . . . . . Fabricators . | . . . . . . Repair Stations . | . . . . . . Recycling Units . | . . . . . . Scanalyzers . | . . . . . . Garrison Access . | . . . . . . Data Cores Recovered . | . . . . . . Used . | . . . . . . Hacking Detections 4 | . 2 . . . 2 Full Trace Events 2 | . 1 . . . 1 Feedback Events . | . . . . . . Feedback Blocked . | . . . . . . Robot Schematics Acquired . | . . . . . . Robots Built . | . . . . . . Authchips . | . . . . . . Time . | . . . . . . Total Robot Build Rating . | . . . . . . Part Schematics Acquired . | . . . . . . Parts Built . | . . . . . . Authchips . | . . . . . . Time . | . . . . . . Total Part Build Rating . | . . . . . . Parts Repaired . | . . . . . . Time . | . . . . . . Parts Recycled . | . . . . . . Recycled Matter . | . . . . . . Retrieved Matter . | . . . . . . Retrieved Components 1 | . . . . . 1 Parts Scanalyzed . | . . . . . . Part Schematics Acquired . | . . . . . . Parts Damaged . | . . . . . . Bothacking | -11 -10 -10 -10 -9 -8 ------------ Run | Yrd Mat Min Exi Min Mat Used RIF Installer . | . . . . . . Robots Hacked 4 | . 1 . . 2 1 Non-combat 3 | . 1 . . 2 . Combat 1 | . . . . . 1 Robot Hacks Applied 6 | . 3 . . 2 1 parse_system 4 | . 1 . . 2 1 no_distress 1 | . 1 . . . . find_recycling 1 | . 1 . . . . Relay Couplers Released 2 | . . . . . 2 Machine Destruction 2 | . . . . . 2 Fabnet Peak Effective % . | . . . . . . Robots Rewired . | . . . . . . Allies Hacked . | . . . . . . Hacks Repelled . | . . . . . . Allies | -11 -10 -10 -10 -9 -8 -------- Run | Yrd Mat Min Exi Min Mat Total Allies 4 | . . 4 . . . Largest Group 3 | . . 3 3 3 . Highest-Rated Group 40 | . . 40 40 40 . Highest-Rated Ally 31 | . . 31 16 16 . Total Orders . | . . . . . . Ally Attacks 19 | . . 7 . 12 . Total Damage 232 | . . 93 . 139 . Kills 3 | . . . . 3 . Allies Corrupted . | . . . . . . Allies Melted . | . . . . . . Intel | -11 -10 -10 -10 -9 -8 ------- Run | Yrd Mat Min Exi Min Mat Robot Analysis Total . | . . . . . . Derelict Logs Recovered . | . . . . . . Drone Launches . | . . . . . . Drone Recoveries . | . . . . . . Exploration | -11 -10 -10 -10 -9 -8 ------------- Run | Yrd Mat Min Exi Min Mat Turns Passed 4953 | 187 175 1407 1043 1508 633 Spaces Moved 2892 | 124 129 847 696 748 348 Core 186 | 14 . . . . 172 Treads . | . . . . . . Legs 2706 | 110 129 847 696 748 176 Wheels . | . . . . . . Hover . | . . . . . . Flight . | . . . . . . Fastest Speed 50 | 50 120 120 120 190 50 Average Speed 146 | 112 120 120 148 190 135 Slowest Speed 700 | 120 120 120 190 190 700 Overloaded Moves . | . . . . . . Propulsion Burnouts . | . . . . . . Robots Hopped . | . . . . . . Cave-ins Triggered 1 | . . 1 . . . Exploration Rate (%) 56 | 7 24 87 93 99 28 Regions Visited 5 Branch Regions 3 Pre-discovered Areas 1 | . . . 1 . . Known Exits Taken 5 | 1 1 1 1 1 . Unknown Exits Taken . | . . . . . . Scrap Searched 1 | . . . . 1 . Spaces Dug 2 | . . 2 . . . Terrain Destroyed 10 | . . 2 . . 8 Melee . | . . . . . . Projectile 2 | . . 2 . . . AOE 8 | . . . . . 8 Terrain Rammed . | . . . . . . Walls Destroyed . | . . . . . . Machines Disabled . | . . . . . . Actions | -11 -10 -10 -10 -9 -8 --------- Run | Yrd Mat Min Exi Min Mat Total 3449 | 147 145 1208 705 793 451 Wait 360 | . 4 325 . . 31 Move 2886 | 123 128 845 695 747 348 Hop . | . . . . . . Pick Up 24 | 4 2 7 1 8 2 Fast Attach 14 | 7 2 2 1 1 1 Attach 20 | . 1 5 1 2 11 Detach 5 | . . 2 . 1 2 Swap 4 | . . . 2 2 . Drop 9 | . 2 2 3 . 2 Fire 92 | 13 2 17 . 20 40 Melee 9 | . 4 . . 4 1 Ram 12 | . . . . . 12 Kick 11 | . . 2 . 8 1 Crush . | . . . . . . Escape Stasis 1 | . . 1 . . . Rewire 2 | . . . 2 . . Trap . | . . . . . . Miscellaneous . | . . . . . . Route ------- -11/Scrapyard -10/Materials (discovered 2 exits: *Min x2) -10/Mines (discovered 2 exits: *Mat / *Exi) -10/Exiles (discovered 2 exits: *Min x2) -9/Mines (discovered 2 exits: *Mat x2) -8/Materials History --------- Turn | Location | Event 2 | -11/Scrapyard | Met Revision 17 88 | -11/Scrapyard | Identified exit to Materials 88 | -11/Scrapyard | Discovered exit to Materials (range 8) 188 | -11/Scrapyard | Entered Materials 188 | -10/Materials | Evolved 1 slot: Propulsion x1 302 | -10/Materials | Build established: Hacker-Mutant 345 | -10/Materials | Met 8R-AWN 352 | -10/Materials | Identified exit to Mines 352 | -10/Materials | Discovered exit to Mines (range 9) 358 | -10/Materials | Discovered exit to Mines (range 15) 363 | -10/Materials | Entered Mines 365 | -10/Mines | Followed 8R-AWN into the Mines 370 | -10/Mines | Assembled infested the area 375 | -10/Mines | Assisted by a Guerilla fighting off Assembled 463 | -10/Mines | Met a Derelict bent on vengeance 577 | -10/Mines | Received a Mining Laser from a helpful Derelict 662 | -10/Mines | Crushed by falling debris 693 | -10/Mines | Lost 3 parts (1p1n1u) 841 | -10/Mines | Found a damaged Exp. Sensor Array with a note attached 844 | -10/Mines | Found Prototype Device 844 | -10/Mines | Identified Exp. Sensor Array 1150 | -10/Mines | Core integrity fell below 50% 1206 | -10/Mines | Assisted by bots powering up and referring to "LRC-V3" 1353 | -10/Mines | Identified exit to Exiles 1353 | -10/Mines | Discovered exit to Exiles (range 5) 1410 | -10/Mines | Identified exit to Materials 1410 | -10/Mines | Discovered exit to Materials (range 8) 1770 | -10/Mines | Entered Exiles 1770 | -10/Exiles | Accompanied by 3 allies 1797 | -10/Exiles | Identified exit to Mines 1797 | -10/Exiles | Discovered exit to Mines (range 14) 1831 | -10/Exiles | Welcomed by 8R-AWN 1861 | -10/Exiles | Met EX-HEX 1969 | -10/Exiles | Met EX-DEC 2016 | -10/Exiles | Learned location of Zion (-7) 2061 | -10/Exiles | Met EX-BIN 2086 | -10/Exiles | Aligned with FarCom system 2087 | -10/Exiles | Given EX-Vault access code 2319 | -10/Exiles | Discovered exit to Mines (range 12) 2468 | -10/Exiles | Visited The Gauntlet 2813 | -10/Exiles | Entered Mines 2813 | -9/Mines | Accompanied by 3 allies 3099 | -9/Mines | Build established: Hacker-Skirmisher 3244 | -9/Mines | Identified exit to Materials 3244 | -9/Mines | Discovered exit to Materials (range 5) 3295 | -9/Mines | Discovered exit to Materials (range 16) 3742 | -9/Mines | Build established: Hacker-Mutant 4321 | -9/Mines | Entered Materials 4321 | -8/Materials | Evolved 4 slots: Propulsion x1, Utility x3 4613 | -8/Materials | Lost 3 parts (1p1n1u) 4690 | -8/Materials | Lost 4 parts (2n2w) 4820 | -8/Materials | Core integrity fell below 50% 4844 | -8/Materials | Lost 5 parts (1n3u1w) 4896 | -8/Materials | Core integrity fell below 20% 4954 | -8/Materials | Destroyed by Y-45 Defender with Heavy Assault Rifle Last Messages --------------- 04932_ R-06 Scavenger collects Terrain Scan Processor. 04937_ Shock Bomb Launcher destroyed. 04940_ Lgt. Ion Engine destroyed. 04941_ Acquired 21 matter. 04942_ R-06 Scavenger collects Wheel. 04942_ Acquired 15 matter. 04943_ Slammed into R-06 Scavenger. 04944_ K-01 Serf collects debris. 04944_ Slammed into R-06 Scavenger. 04945_ R-06 Scavenger destroyed. 04946_ W-25 Informer distress signal alerts nearby ally. 04947_ K-01 Serf collects debris. 04949_ System corrupted: Component data lost. 04950_ K-01 Serf collects debris. 04952_ Slammed into U-05 Engineer. 04952_ C-30 ARC bursts open, deploying its payload. 04952_ G-50 Soldier unfolds itself. 04952_ G-47 Trooper unfolds itself. 04952_ M-28 Smith unfolds itself. 04953_ K-01 Serf collects debris. Map ----- +----------------------------------------------------+ | #???????????????????????????????????????????? | | ###???????????????????????????????????????????? | | ?? #?????????????????????????????????????????????? | | ?????????????????????????????????????????????????? | | ?????????????????????????????????????????????????? | | ?????????????????????????????????????????????????? | | ?????????????????????????????????????????????????? | | ?????????????????????????????????????????????????? | | ?????????????????????????????????????????????????? | | ????????????????????????##???????????????????????? | | ???????????????????????? ???????????????????????? | | ???????????????????????? ???????????????????????? | | ???????????????????????Y ???????????????????????? | | ????????????????????????# ???????????????????????? | | ????????????????????????# ???????????????????????? | | ????????????????????????# ??????????????####?????? | | ???????????????########?# #???????????? ??????? | | ???????????????# #?# #??????????? ""??????? | | ??????????????##*!/ #?# #?????????? ""??????? | | ??????????????#"= % #?# #????????? "???????? | | ??????????????#"*%[ %*#?# ########## ???????? | | ??????????????#"[= =%#?#w kg/g% ??????????? | | ??????????????#"=%= %=#?#== g#?????????????? | | ###############"" "/#####=[ #?????????????? | | % % % %|% w=%Y!*% g?????????????? | | #### ############## #####@##########?????????????? | | ####+##???????????# #???#! ?????????????????????? | | ????????????# #???# ???????????????????? | | ????????????#+#???# !=t #?????????????????? | | " ????????????? ???# != #?????????????????? | | """ ????????????"" ???# == !#?????????????????? | | """ ????????????"""???# #?????????????????? | | """ #??????????"""???########?????????????????? | | "" #?????????"""????????????????????????????? | | """ #???????????? ????????????????????????????? | | "" !??????????????????????????????????????????? | | "" #?????????????????????????????????????????? | | " ??????????????????????????????????????????? | | ???????????????????????g??????????????????? | | ######????????????o??????????????????????????????? | | ???????????????????????????????g?????????????????? | | ?????????????????????????????????????????????????? | | ?????????????????????????????????????????????????? | | ?????????????????????????????????????????????????? | | ?????????????????????????????????????????????????? | | ?????????????????????????????????????????????????? | | ?????????????????????????????????????????????????? | | ?????????????????????????????????????????????????? | | ?????????????????????????????????????????????????? | | ?????????????????????????????????????????????????? | +----------------------------------------------------+ Best States ------------- Heat Dissipation 59 Energy Generation 14 Energy Capacity 160 Matter Stores 300 Matter Capacity 300 Sight Range 16 Robot Scan Range 20 Terrain Scan Range 16 Terrain Scan Density 10 Resistance: KI 35 Resistance: TH 35 Resistance: EX 35 Resistance: EM 35 Resistance: I 35 Resistance: S 35 Resistance: P 35 Evasion (%) 55 Targeting Accuracy 5 Offensive Hacking 20 Item Schematics ----------------- None Robot Schematics ------------------ None Fabricated ------------ Nothing Alien Tech Used ----------------- None Achievements -------------- None Challenges ------------ None Game ------ Seed FlakFissionChronowheel Manual? 0 Play Time 00:46:09 Cumulative 10.7 hours Start 2024.11.29 @ 09:51:50 End 2024.11.29 @ 10:44:42 Sessions 1 Manual Loads 0 Difficulty Explorer Special Mode None Game No. 14 Rogue 1 Adventurer 0 Explorer 13 Win Type - Total 0 Types 0/0/0/0/0/0/0/0/0 Lore% 14 Gallery% 13 Achievement% 17 Wizard Run 0 Options --------- Layout 0 ASCII 0 Keyboard 1 Movement Numpad Keybinds 0 Fullscreen 2 Font 24/Smallcaps Map View 76x50 Zoom Use 0% Tactical HUD 1 Map Filters NONE Filters NONE Steam 1 RUN: a8579139-a5b1-4872-a9d8-41d786abfce7